[Event "SVK-ch Open 2018"]
[Site "Banska Stiavnica"]
[Date "2018.07.14"]
[Round "8"]
[White "Sosovicka, Jakub"]
[Black "Seres, Bela"]
[Result "0-1"]
[ECO "B27"]
[WhiteElo "1982"]
[BlackElo "2212"]
[Annotator "NA"]
[PlyCount "84"]
[EventDate "2018.07.07"]
[EventType "swiss"]
[EventCountry "SVK"]
[SourceTitle "playchess.com"]
[Source "ChessBase"]
[SourceQuality "1"]
[TimeControl "40/5400+30:1800+30"]

1. e4 {[%emt 0:00:00]} c5 {[%emt 0:00:00]} 2. Nf3 {[%emt 0:00:00]} g6 {[%emt 0:00:00]} 3. d4 {[%emt 0:00:00]} Bg7 {[%emt 0:00:00]} 4. d5 {[%emt 0:00:54]} d6 {[%emt 0:02:26]} 5. c4 {[%emt 0:02:58]} e6 {[%emt 0:00:35]} 6. h3 {[%emt 0:03:01] A40: Verschiedene (seltene) Antworten auf 1.d4} (6. Bd3 exd5 7. cxd5 Bg4 8. Nbd2 Nf6 9. O-O O-O 10. h3 Bxf3 11. Nxf3 c4 12. Bxc4 Nxe4 13. Re1 Re8 {1-0 (42) Giri,A (2752)-Adhiban,B (2655) Wijk aan Zee 2018}) 6... exd5 {[%emt 0:00:27]} 7. exd5 {[%emt 0:00:55] LiveBook: 4 Partien} Ne7 {[%emt 0:01:45]} 8. Nc3 {[%emt 0:06:22]} O-O {[%emt 0:02:28]} 9. Bd3 {[%emt 0:04:16]} Bf5 {[%emt 0:02:20]} 10. Bf4 {[%emt 0:05:51]} a6 {[%emt 0:05:39]} 11. O-O {[%emt 0:02:52]} h6 $146 {[%emt 0:08:54]} ({Vorgänger:} 11... Bxd3 12. Qxd3 Nf5 {1-0 (33) Askerov,M (2332)-Ismagilov,D (2058) St Petersburg 2017}) 12. Re1 {[%emt 0:04:01]} Bxd3 {[%emt 0:02:10]} 13. Qxd3 {[%emt 0:01:31]} Nc8 {[%emt 0:04:26]} 14. Ne4 {[%emt 0:10:29]} Qc7 {[%emt 0:06:25]} 15. Qe3 {[%emt 0:26:44]} Kh7 {[%emt 0:00:42]} 16. b4 {[%emt 0:20:30]} b6 {[%emt 0:01:05]} 17. bxc5 {[%emt 0:02:25]} bxc5 {[%emt 0:00:46]} 18. Rab1 {[%emt 0:00:39]} Nd7 {[%emt 0:00:31]} 19. Rb3 {[%emt 0:03:32]} Rd8 {[%emt 0:09:38]} 20. Reb1 {[%emt 0:02:15]} Ra7 $18 {[%emt 0:00:13]} 21. a3 {[%emt 0:01:18]} Nf8 {[%emt 0:03:48]} 22. Nfd2 {[%emt 0:00:34]} f5 {[%emt 0:12:08]} 23. Nc3 {[%emt 0:00:23]} Qf7 {[%emt 0:04:02]} 24. Rb8 {[%emt 0:00:45]} Re8 {[%emt 0:14:21]} 25. Qd3 {[%emt 0:00:34]} g5 {[%emt 0:05:55]} 26. Bh2 {[%emt 0:00:16]} Ng6 {[%emt 0:00:25]} 27. Nf3 {[%emt 0:00:27]} Qf6 {[%emt 0:02:35]} 28. Na4 {[%emt 0:00:18]} Rae7 {[%emt 0:02:22]} 29. Nb6 {[%emt 0:00:39]} Nxb6 {[%emt 0:00:50]} 30. R8xb6 {[%emt 0:00:31]} f4 {[%emt 0:01:56]} 31. Rxa6 {[%emt 0:00:25]} Kg8 {[%emt 0:00:14]} 32. g3 {[%emt 0:00:52]} h5 {[%emt 0:02:45]} 33. g4 {[%emt 0:00:31]} hxg4 {[%emt 0:01:26]} 34. hxg4 {[%emt 0:00:04]} Ne5 {[%emt 0:00:40]} 35. Nxe5 {[%emt 0:00:22]} Rxe5 {[%emt 0:00:10]} 36. Rb7 {[%emt 0:00:47]} Re1+ {[%emt 0:01:32]} 37. Kg2 {[%emt 0:00:01]} Rf8 {[%emt 0:01:18]} 38. Raa7 {[%emt 0:00:55]} f3+ {[%emt 0:00:51]} 39. Kg3 {[%emt 0:00:02]} Qf4+ {[%emt 0:00:35]} 40. Kh3 {[%emt 0:00:24]} Qxh2+ {[%emt 0:00:02]} 41. Kxh2 {[%emt 0:30:26]} Be5+ {[%emt 0:30:01]} 42. Kh3 {[%emt 0:00:16]} Rh1# {[%emt 0:00:02]} 0-1

[Event "SVK-ch Open 2018"]
[Site "Banska Stiavnica"]
[Date "2018.07.14"]
[Round "8"]
[White "Pericka, Tomas"]
[Black "Slaba, Andrea"]
[Result "0-1"]
[ECO "A03"]
[WhiteElo "1975"]
[BlackElo "1936"]
[Annotator "NA"]
[PlyCount "44"]
[EventDate "2018.07.07"]
[EventType "swiss"]
[EventCountry "SVK"]
[SourceTitle "playchess.com"]
[Source "ChessBase"]
[SourceQuality "1"]
[TimeControl "40/5400+30:1800+30"]

1. f4 {[%emt 0:00:00]} d5 {[%emt 0:01:27]} 2. Nf3 {[%emt 0:00:02]} c5 {[%emt 0:00:10]} 3. e3 {[%emt 0:00:06]} Nf6 {[%emt 0:00:49]} 4. b3 {[%emt 0:01:38]} g6 {[%emt 0:00:38]} 5. Bb2 {[%emt 0:00:12]} Bg7 {[%emt 0:00:06]} 6. Be2 {[%emt 0:02:37]} O-O {[%emt 0:00:28]} 7. Ne5 {[%emt 0:03:39]} Nfd7 {[%emt 0:05:39]} 8. h4 Nxe5 {[%emt 0:01:50]} 9. Bxe5 {[%emt 0:01:58]} Bxe5 {[%emt 0:00:58]} 10. fxe5 {[%emt 0:00:07]} Nc6 {[%emt 0:00:18]} 11. d4 {[%emt 0:00:22]} Qa5+ {[%emt 0:01:32]} 12. c3 {[%emt 0:00:18]} Bf5 {[%emt 0:00:17]} 13. Qd2 {[%emt 0:02:47]} f6 {[%emt 0:05:35]} 14. h5 {[%emt 0:05:54]} g5 {[%emt 0:00:34]} 15. Bd3 {[%emt 0:00:50]} Bxd3 {[%emt 0:02:11]} 16. Qxd3 {[%emt 0:00:55]} cxd4 {[%emt 0:00:55]} 17. exd4 {[%emt 0:00:14]} fxe5 {[%emt 0:03:02]} 18. b4 {[%emt 0:00:46]} Qc7 {[%emt 0:06:02]} 19. Qg3 {[%emt 0:04:44]} Rf5 {[%emt 0:01:12]} 20. h6 {[%emt 0:00:12]} Nxd4 {[%emt 0:04:48]} 21. cxd4 {[%emt 0:00:58]} Qc1+ {[%emt 0:00:18]} 22. Ke2 {[%emt 0:00:01]} Qxh1 {[%emt 0:00:11]} 0-1

[Event "SVK-ch Open 2018"]
[Site "Banska Stiavnica"]
[Date "2018.07.14"]
[Round "8"]
[White "Gombar, Peter"]
[Black "Hrbek, Stepan"]
[Result "1/2-1/2"]
[ECO "A45"]
[WhiteElo "1974"]
[BlackElo "2129"]
[Annotator "NA"]
[PlyCount "94"]
[EventDate "2018.07.07"]
[EventType "swiss"]
[EventCountry "SVK"]
[SourceTitle "playchess.com"]
[Source "ChessBase"]
[SourceQuality "1"]
[TimeControl "40/5400+30:1800+30"]

1. d4 {[%emt 0:00:00]} Nf6 {[%emt 0:00:00]} 2. Bf4 {[%emt 0:00:00]} d5 {[%emt 0:00:00]} 3. e3 {[%emt 0:00:00]} c5 {[%emt 0:00:32]} 4. c3 {[%emt 0:00:17]} Nc6 {[%emt 0:01:15]} 5. Nd2 {[%emt 0:00:42]} Bf5 {[%emt 0:13:22]} 6. h3 {[%emt 0:03:38]} Qb6 {[%emt 0:03:32]} 7. Qb3 {[%emt 0:05:22]} c4 {[%emt 0:09:31]} 8. Qxb6 {[%emt 0:00:44]} axb6 {[%emt 0:00:02]} 9. Ngf3 {[%emt 0:02:31]} b5 {[%emt 0:08:48]} 10. Be2 {[%emt 0:05:15]} b4 {[%emt 0:04:42]} 11. O-O {[%emt 0:02:46]} h6 {[%emt 0:00:49]} 12. Ne5 {[%emt 0:10:08]} e6 {[%emt 0:09:21]} 13. Nxc6 {[%emt 0:07:51]} bxc6 {[%emt 0:00:04]} 14. cxb4 {[%emt 0:00:15]} Bxb4 {[%emt 0:01:07]} 15. Nf3 {[%emt 0:02:31]} Ke7 {[%emt 0:08:08]} 16. Rfc1 {[%emt 0:08:36]} Rhc8 {[%emt 0:06:17]} 17. a3 {[%emt 0:07:10]} c3 {[%emt 0:09:56]} 18. bxc3 {[%emt 0:03:03]} Bxa3 {[%emt 0:00:11]} 19. Rf1 {[%emt 0:01:24]} c5 {[%emt 0:00:51]} 20. dxc5 {[%emt 0:09:23]} Rxc5 {[%emt 0:07:06]} 21. Nd4 {[%emt 0:05:54]} Rcc8 {[%emt 0:11:52]} 22. Nxf5+ {[%emt 0:01:53]} exf5 {[%emt 0:00:03]} 23. Be5 {[%emt 0:01:17]} Bd6 {[%emt 0:01:06]} 24. Bd4 {[%emt 0:02:26]} Ke6 {[%emt 0:01:21]} 25. Rfb1 {[%emt 0:01:10]} Rcb8 {[%emt 0:01:21]} 26. Bd3 {[%emt 0:01:16]} Rxb1+ {[%emt 0:01:01]} 27. Rxb1 {[%emt 0:00:08]} Rb8 {[%emt 0:00:03]} 28. Rxb8 {[%emt 0:00:37]} Bxb8 {[%emt 0:00:03]} 29. Bxf6 {[%emt 0:01:10]} Kxf6 {[%emt 0:00:18]} 30. c4 {[%emt 0:00:06]} dxc4 {[%emt 0:00:06]} 31. Bxc4 {[%emt 0:00:07]} f4 {[%emt 0:00:35]} 32. exf4 {[%emt 0:00:09]} Bxf4 {[%emt 0:00:04]} 33. g3 {[%emt 0:00:27]} Bd6 {[%emt 0:00:12]} 34. Kg2 {[%emt 0:00:12]} Kg6 {[%emt 0:00:17]} 35. Kf3 {[%emt 0:00:53]} f5 {[%emt 0:00:35]} 36. Bd3 {[%emt 0:00:16]} Kf6 {[%emt 0:00:05]} 37. Bb5 {[%emt 0:00:21]} Bc5 {[%emt 0:00:23]} 38. Bd7 {[%emt 0:00:14]} Ke5 {[%emt 0:00:38]} 39. Bc8 {[%emt 0:00:21]} g5 {[%emt 0:00:43]} 40. Bd7 {[%emt 0:00:35]} h5 {[%emt 0:02:43]} 41. Be8 {[%emt 0:32:06]} h4 {[%emt 0:30:06]} 42. gxh4 {[%emt 0:00:12]} gxh4 {[%emt 0:00:04]} 43. Bd7 {[%emt 0:00:26]} Kf6 {[%emt 0:00:58]} 44. Bc8 {[%emt 0:00:24]} Kg5 {[%emt 0:00:07]} 45. Bd7 {[%emt 0:00:09]} Bd4 {[%emt 0:00:43]} 46. Bc8 {[%emt 0:00:10]} f4 {[%emt 0:00:13]} 47. Bd7 {[%emt 0:00:16]} Bc5 {[%emt 0:00:12]} 1/2-1/2

[Event "SVK-ch Open 2018"]
[Site "Banska Stiavnica"]
[Date "2018.07.14"]
[Round "8"]
[White "Sandor, Martin"]
[Black "Panko, Eduard"]
[Result "1/2-1/2"]
[ECO "C18"]
[WhiteElo "1968"]
[BlackElo "1871"]
[Annotator "NA"]
[PlyCount "135"]
[EventDate "2018.07.07"]
[EventType "swiss"]
[EventCountry "SVK"]
[SourceTitle "playchess.com"]
[Source "ChessBase"]
[SourceQuality "1"]
[TimeControl "40/5400+30:1800+30"]

1. e4 {[%emt 0:00:00]} e6 {[%emt 0:00:00]} 2. d4 {[%emt 0:00:00]} d5 {[%emt 0:00:00]} 3. Nc3 {[%emt 0:00:00]} Bb4 {[%emt 0:00:19]} 4. e5 {[%emt 0:00:16]} Ne7 {[%emt 0:00:31]} 5. a3 {[%emt 0:00:05]} Bxc3+ {[%emt 0:00:21]} 6. bxc3 {[%emt 0:00:08]} c5 {[%emt 0:00:10]} 7. Qg4 {[%emt 0:00:23]} Qc7 {[%emt 0:00:12]} 8. Qxg7 {[%emt 0:04:40]} Rg8 {[%emt 0:00:18]} 9. Qxh7 {[%emt 0:00:36]} cxd4 {[%emt 0:00:07]} 10. Ne2 {[%emt 0:03:22]} dxc3 {[%emt 0:01:00]} 11. Qd3 {[%emt 0:02:11]} Qxe5 {[%emt 0:03:21]} 12. Bf4 {[%emt 0:02:31]} Qf5 {[%emt 0:02:59]} 13. Qxf5 {[%emt 0:04:41]} Nxf5 {[%emt 0:00:02]} 14. Nxc3 {[%emt 0:00:55]} Bd7 {[%emt 0:03:28]} 15. Rb1 {[%emt 0:03:01]} Bc6 {[%emt 0:02:34]} 16. Bd3 {[%emt 0:09:18]} Nh4 {[%emt 0:12:28]} 17. Bg3 {[%emt 0:02:48]} Nxg2+ {[%emt 0:07:01]} 18. Kf1 {[%emt 0:00:56]} d4 {[%emt 0:09:32]} 19. Ne4 {[%emt 0:02:06]} Ke7 {[%emt 0:10:48]} 20. Kxg2 {[%emt 0:03:11]} f5 {[%emt 0:01:46]} 21. Rhe1 {[%emt 0:01:39]} fxe4 {[%emt 0:04:33]} 22. Bxe4 {[%emt 0:01:41]} b6 {[%emt 0:00:25]} 23. h4 {[%emt 0:06:15]} Bxe4+ {[%emt 0:08:45]} 24. Rxe4 {[%emt 0:00:50]} Nc6 {[%emt 0:00:34]} 25. Rbe1 {[%emt 0:03:35]} Rg6 {[%emt 0:01:21]} 26. h5 {[%emt 0:00:59]} Rh6 {[%emt 0:00:31]} 27. Bf4 {[%emt 0:02:14]} Rg8+ {[%emt 0:02:03]} 28. Kf1 {[%emt 0:03:43]} Rxh5 {[%emt 0:03:32]} 29. Rxe6+ {[%emt 0:02:16]} Kf7 {[%emt 0:00:43]} 30. Rxc6 {[%emt 0:00:47]} Rh1+ {[%emt 0:00:07]} 31. Ke2 {[%emt 0:00:07]} Re8+ {[%emt 0:00:30]} 32. Be3 {[%emt 0:00:06]} Rxe1+ {[%emt 0:00:17]} 33. Kxe1 {[%emt 0:01:09]} dxe3 {[%emt 0:00:17]} 34. Rc7+ {[%emt 0:04:11]} Kf6 {[%emt 0:02:10]} 35. f3 {[%emt 0:12:37]} e2 {[%emt 0:23:40]} 36. Rxa7 {[%emt 0:02:21]} Kf5 {[%emt 0:00:37]} 37. Ra4 {[%emt 0:00:12]} Re3 {[%emt 0:00:39]} 38. Rb4 {[%emt 0:00:41]} Rxf3 {[%emt 0:00:42]} 39. Kxe2 {[%emt 0:00:15]} Rxa3 {[%emt 0:00:11]} 40. Rxb6 {[%emt 0:00:07]} Ke5 {[%emt 0:00:14]} 41. Rb4 {[%emt 0:31:01]} Kd5 {[%emt 0:30:18]} 42. Rh4 {[%emt 0:00:45]} Kc5 {[%emt 0:00:33]} 43. Kd2 {[%emt 0:00:15]} Rg3 {[%emt 0:00:25]} 44. Kc1 {[%emt 0:00:28]} Rg1+ {[%emt 0:00:00]} 45. Kb2 {[%emt 0:00:00]} Rg2 {[%emt 0:00:00]} 46. Kb3 {[%emt 0:00:00]} Rg3+ {[%emt 0:00:00]} 47. c3 {[%emt 0:00:00]} Rg5 {[%emt 0:00:00]} 48. Rh8 {[%emt 0:00:00]} Rg3 {[%emt 0:00:00]} 49. Rh5+ {[%emt 0:00:00]} Kc6 {[%emt 0:00:00]} 50. Kb4 {[%emt 0:00:00]} Rg4+ {[%emt 0:00:00]} 51. c4 {[%emt 0:00:00]} Rg6 {[%emt 0:00:00]} 52. Ra5 {[%emt 0:00:00]} Kb6 {[%emt 0:00:00]} 53. c5+ {[%emt 0:00:00]} Kb7 {[%emt 0:00:00]} 54. Ra2 {[%emt 0:00:00]} Rg1 {[%emt 0:00:00]} 55. Rd2 {[%emt 0:00:00]} Rb1+ {[%emt 0:00:00]} 56. Kc4 {[%emt 0:00:00]} Rc1+ {[%emt 0:00:00]} 57. Kd5 {[%emt 0:00:00]} Kc7 {[%emt 0:00:00]} 58. Rd3 {[%emt 0:00:00]} Rc2 {[%emt 0:00:00]} 59. Rd1 {[%emt 0:00:00]} Rc3 {[%emt 0:00:00]} 60. Rh1 {[%emt 0:00:00]} Rd3+ {[%emt 0:00:00]} 61. Kc4 {[%emt 0:00:00]} Rd2 {[%emt 0:00:00]} 62. Rh7+ {[%emt 0:00:00]} Kc6 {[%emt 0:00:00]} 63. Rh6+ {[%emt 0:00:00]} Kc7 {[%emt 0:00:00]} 64. Kc3 {[%emt 0:00:00]} Rd1 {[%emt 0:00:00]} 65. Rh7+ {[%emt 0:00:00]} Kc6 {[%emt 0:00:00]} 66. Kc4 {[%emt 0:00:00]} Rc1+ {[%emt 0:00:00]} 67. Kb4 {[%emt 0:00:00]} Rb1+ {[%emt 0:00:00]} 68. Kc4 {[%emt 0:00:00] Kd5+ Kd4+} 1/2-1/2

[Event "SVK-ch Open 2018"]
[Site "Banska Stiavnica"]
[Date "2018.07.14"]
[Round "8"]
[White "Tomanek, Rafael"]
[Black "Lukac, Roman"]
[Result "0-1"]
[ECO "A48"]
[WhiteElo "1939"]
[BlackElo "2089"]
[Annotator "NA"]
[PlyCount "96"]
[EventDate "2018.07.07"]
[EventType "swiss"]
[EventCountry "SVK"]
[SourceTitle "playchess.com"]
[Source "ChessBase"]
[SourceQuality "1"]
[TimeControl "40/5400+30:1800+30"]

1. d4 {[%emt 0:00:00]} Nf6 {[%emt 0:00:00]} 2. Nf3 {[%emt 0:00:00]} g6 {[%emt 0:00:00]} 3. c4 {[%emt 0:00:00]} Bg7 {[%emt 0:00:01]} 4. Nc3 {[%emt 0:00:00]} O-O {[%emt 0:00:22]} 5. e4 {[%emt 0:00:00] LiveBook: 10033 Partien} d6 {[%emt 0:00:08]} 6. h3 {[%emt 0:00:00]} e5 {[%emt 0:03:34]} 7. d5 {[%emt 0:00:21]} a5 {[%emt 0:01:47]} 8. Bg5 {[%emt 0:00:46]} h6 {[%emt 0:01:27]} 9. Be3 {[%emt 0:00:02]} Na6 $11 {[%emt 0:00:47]} 10. Be2 {[%emt 0:02:42]} Nc5 {[%emt 0:03:52]} 11. Nd2 {[%emt 0:02:33]} Bd7 {[%emt 0:01:51]} 12. b3 {[%emt 0:01:38]} Ne8 {[%emt 0:01:53]} 13. a3 {[%emt 0:03:14]} f5 {[%emt 0:01:15]} 14. f3 {[%emt 0:02:39]} Nf6 {[%emt 0:10:25]} 15. b4 {[%emt 0:02:25]} Na6 {[%emt 0:09:57]} 16. Rb1 {[%emt 0:01:28]} axb4 {[%emt 0:01:32]} 17. axb4 {[%emt 0:00:22]} Nh5 {[%emt 0:02:13]} 18. c5 {[%emt 0:13:41]} Bf6 {[%emt 0:05:57]} 19. Nc4 {[%emt 0:05:19]} Bh4+ {[%emt 0:03:55]} 20. Kf1 {[%emt 0:05:05]} Ng3+ {[%emt 0:11:51]} 21. Kg1 {[%emt 0:00:03]} Bg5 {[%emt 0:00:32]} 22. Bf2 {[%emt 0:06:42]} Nxh1 {[%emt 0:02:15]} 23. Kxh1 {[%emt 0:00:04]} Be7 {[%emt 0:02:12]} 24. Qg1 {[%emt 0:09:35]} Rf6 {[%emt 0:08:52]} 25. Bh4 {[%emt 0:01:25]} Rf7 {[%emt 0:08:45]} 26. Bf2 {[%emt 0:00:07]} Qf8 {[%emt 0:01:06]} 27. b5 {[%emt 0:00:59]} Nb8 {[%emt 0:06:24]} 28. c6 {[%emt 0:03:40]} Bc8 {[%emt 0:01:53]} 29. Ra1 {[%emt 0:00:47]} Rxa1 {[%emt 0:01:31]} 30. Qxa1 {[%emt 0:00:02]} bxc6 {[%emt 0:00:24]} 31. dxc6 {[%emt 0:05:14]} Be6 {[%emt 0:00:55]} 32. Nd5 {[%emt 0:17:04]} Qc8 {[%emt 0:04:21]} 33. Bg1 {[%emt 0:05:58]} Bh4 {[%emt 0:00:47]} 34. Nb2 {[%emt 0:03:53]} fxe4 {[%emt 0:01:19]} 35. fxe4 {[%emt 0:01:11]} Kg7 {[%emt 0:01:28]} 36. Nd3 {[%emt 0:03:02]} Bg3 {[%emt 0:00:54]} 37. Bh2 {[%emt 0:02:37]} Bxh2 {[%emt 0:00:34]} 38. Kxh2 {[%emt 0:00:03]} h5 {[%emt 0:00:27]} 39. Qe1 {[%emt 0:01:38]} Qd8 {[%emt 0:00:46]} 40. Qg3 {[%emt 0:00:29]} h4 {[%emt 0:00:36]} 41. Qe3 {[%emt 0:30:09]} Kh7 {[%emt 0:31:07]} 42. Nf2 {[%emt 0:02:29]} Qf8 {[%emt 0:00:00]} 43. Ng4 {[%emt 0:00:00]} Bxd5 {[%emt 0:00:00]} 44. exd5 {[%emt 0:00:00]} Rf4 {[%emt 0:00:00]} 45. Qa7 {[%emt 0:00:00]} Rb4 {[%emt 0:00:00]} 46. Qxc7+ {[%emt 0:00:00]} Kh8 {[%emt 0:00:00]} 47. Qa7 {[%emt 0:00:00]} Qf4+ {[%emt 0:00:00]} 48. Kg1 {[%emt 0:00:00]} Rb1+ {[%emt 0:00:00] Kf2} 0-1

[Event "SVK-ch Open 2018"]
[Site "Banska Stiavnica"]
[Date "2018.07.14"]
[Round "8"]
[White "Budinsky, Jozef"]
[Black "Gajdosik, Andrej"]
[Result "1-0"]
[ECO "A22"]
[WhiteElo "1931"]
[BlackElo "1992"]
[Annotator "NA"]
[PlyCount "109"]
[EventDate "2018.07.07"]
[EventType "swiss"]
[EventCountry "SVK"]
[SourceTitle "playchess.com"]
[Source "ChessBase"]
[SourceQuality "1"]
[TimeControl "40/5400+30:1800+30"]

1. c4 {[%emt 0:00:00]} e5 {[%emt 0:00:12]} 2. Nc3 {[%emt 0:00:00]} Nf6 {[%emt 0:00:32]} 3. g3 {[%emt 0:00:17]} d5 {[%emt 0:01:05]} 4. cxd5 {[%emt 0:00:19]} Nxd5 {[%emt 0:00:08]} 5. Bg2 {[%emt 0:00:10]} Nb6 {[%emt 0:00:26]} 6. Nf3 {[%emt 0:00:27]} Nc6 {[%emt 0:00:15]} 7. O-O {[%emt 0:00:14]} Be7 {[%emt 0:00:35]} 8. d3 {[%emt 0:00:24]} O-O {[%emt 0:00:27]} 9. Be3 {[%emt 0:01:21]} Be6 {[%emt 0:02:42]} 10. Rc1 {[%emt 0:09:28]} f5 {[%emt 0:03:09]} 11. Bh3 {[%emt 0:09:42]} Nd5 {[%emt 0:14:57]} 12. Nxd5 {[%emt 0:06:24]} Bxd5 {[%emt 0:03:47]} 13. a3 {[%emt 0:03:02]} g5 {[%emt 0:04:06]} 14. Bg2 {[%emt 0:01:24]} g4 {[%emt 0:08:45]} 15. Nd2 {[%emt 0:01:13]} Bxg2 {[%emt 0:04:43]} 16. Kxg2 {[%emt 0:00:02]} Qd5+ {[%emt 0:00:21]} 17. f3 {[%emt 0:00:27]} f4 {[%emt 0:03:18]} 18. Bg1 {[%emt 0:04:34]} fxg3 {[%emt 0:02:28]} 19. hxg3 {[%emt 0:00:20]} gxf3+ {[%emt 0:00:25]} 20. Rxf3 {[%emt 0:02:24]} Rxf3 {[%emt 0:02:22]} 21. Nxf3 {[%emt 0:00:29]} Rd8 {[%emt 0:00:25]} 22. Qa4 {[%emt 0:02:10]} Kh8 {[%emt 0:03:39]} 23. Qc4 {[%emt 0:03:48]} a6 {[%emt 0:06:39]} 24. Qxd5 {[%emt 0:02:12]} Rxd5 {[%emt 0:00:05]} 25. Rc4 {[%emt 0:01:13]} Bd6 {[%emt 0:02:48]} 26. Rg4 {[%emt 0:01:39]} h6 {[%emt 0:03:37]} 27. Be3 {[%emt 0:00:33]} Kh7 {[%emt 0:01:16]} 28. Rh4 {[%emt 0:01:37]} Bf8 {[%emt 0:03:21]} 29. Ng5+ {[%emt 0:02:59]} Kg6 {[%emt 0:02:13]} 30. Ne6 {[%emt 0:00:11]} Bd6 {[%emt 0:00:39]} 31. Rxh6+ {[%emt 0:00:26]} Kf7 {[%emt 0:00:05]} 32. Nxc7 {[%emt 0:03:02]} Bxc7 {[%emt 0:00:01]} 33. Rh7+ {[%emt 0:00:13]} Kf6 {[%emt 0:00:21]} 34. Rxc7 {[%emt 0:00:09]} Rb5 {[%emt 0:00:17]} 35. b4 {[%emt 0:02:19]} a5 {[%emt 0:00:54]} 36. bxa5 {[%emt 0:07:11]} Rxa5 {[%emt 0:02:22]} 37. Rxb7 {[%emt 0:00:20]} Rxa3 {[%emt 0:00:04]} 38. Rb6 {[%emt 0:02:31]} Rc3 {[%emt 0:00:07]} 39. Kf3 {[%emt 0:00:11]} Kf7 {[%emt 0:02:02]} 40. Ke4 {[%emt 0:00:25]} Rc2 {[%emt 0:00:14]} 41. Kf3 {[%emt 0:30:54]} Ne7 {[%emt 0:31:42]} 42. Rb5 {[%emt 0:02:28]} Ke6 {[%emt 0:00:55]} 43. g4 {[%emt 0:05:48]} Nd5 {[%emt 0:00:16]} 44. Bf2 {[%emt 0:03:15]} Rxe2 {[%emt 0:05:50]} 45. Rxd5 {[%emt 0:00:46]} Rxf2+ {[%emt 0:00:07]} 46. Kxf2 {[%emt 0:00:12]} Kxd5 {[%emt 0:00:03]} 47. Ke3 {[%emt 0:00:11]} Kd6 {[%emt 0:00:08]} 48. g5 {[%emt 0:00:18]} Ke7 {[%emt 0:00:23]} 49. Ke4 {[%emt 0:00:13]} Ke6 {[%emt 0:00:07]} 50. g6 {[%emt 0:00:26]} Kf6 {[%emt 0:00:12]} 51. g7 {[%emt 0:00:12]} Kxg7 {[%emt 0:00:03]} 52. Kxe5 {[%emt 0:00:17]} Kf7 {[%emt 0:00:03]} 53. Kd6 {[%emt 0:00:24]} Ke8 {[%emt 0:00:18]} 54. d4 {[%emt 0:00:57]} Kd8 {[%emt 0:00:07]} 55. d5 {[%emt 0:00:12]} 1-0

[Event "SVK-ch Open 2018"]
[Site "Banska Stiavnica"]
[Date "2018.07.14"]
[Round "8"]
[White "Liska, Jaroslav"]
[Black "Odler, Daniel"]
[Result "0-1"]
[ECO "B27"]
[WhiteElo "1900"]
[BlackElo "2067"]
[Annotator "NA"]
[PlyCount "90"]
[EventDate "2018.07.07"]
[EventType "swiss"]
[EventCountry "SVK"]
[SourceTitle "playchess.com"]
[Source "ChessBase"]
[SourceQuality "1"]
[TimeControl "40/5400+30:1800+30"]

1. e4 {[%emt 0:00:00]} c5 {[%emt 0:00:00]} 2. Nf3 {[%emt 0:00:00]} e6 {[%emt 0:00:00]} 3. d4 cxd4 4. Nxd4 {[%emt 0:00:52]} a6 {[%emt 0:00:29] LiveBook: 25296 Partien} 5. a4 Qc7 6. Bd3 {[%emt 0:02:54]} Nf6 {[%emt 0:00:58]} 7. Be3 {[%emt 0:02:20]} Nc6 {[%emt 0:00:36]} 8. Nxc6 {[%emt 0:00:19]} Qxc6 {[%emt 0:01:58]} 9. f3 $11 {[%emt 0:00:25]} Bc5 {[%emt 0:08:25]} 10. Bxc5 {[%emt 0:04:54]} Qxc5 {[%emt 0:00:08]} 11. Qd2 {[%emt 0:00:19]} d5 {[%emt 0:07:08]} 12. e5 {[%emt 0:03:28]} Nd7 {[%emt 0:01:22]} 13. f4 {[%emt 0:00:17]} O-O {[%emt 0:01:38]} 14. Qf2 {[%emt 0:09:39]} f6 {[%emt 0:08:13]} 15. Qxc5 {[%emt 0:07:22]} Nxc5 {[%emt 0:00:04]} 16. b4 {[%emt 0:07:34]} Nxd3+ {[%emt 0:01:18]} 17. cxd3 {[%emt 0:00:01]} fxe5 {[%emt 0:00:46]} 18. fxe5 {[%emt 0:00:03]} Rf4 {[%emt 0:04:42]} 19. Ke2 {[%emt 0:03:41]} Rxb4 {[%emt 0:00:26]} 20. Nd2 {[%emt 0:02:06]} Bd7 {[%emt 0:09:27]} 21. a5 {[%emt 0:00:56]} Rc8 {[%emt 0:04:43]} 22. Rhb1 {[%emt 0:04:17]} Rxb1 {[%emt 0:00:41]} 23. Rxb1 {[%emt 0:00:37]} Bb5 {[%emt 0:00:25]} 24. Ke3 {[%emt 0:08:09]} Rc2 {[%emt 0:04:11]} 25. Nf3 {[%emt 0:04:45]} Rc3 {[%emt 0:14:05]} 26. Ng5 {[%emt 0:12:14]} Rxd3+ {[%emt 0:00:30]} 27. Kf2 {[%emt 0:00:16]} Ra3 {[%emt 0:06:46]} 28. Nxe6 {[%emt 0:01:36]} Rxa5 {[%emt 0:01:45]} 29. Nd8 {[%emt 0:04:16]} Ra4 {[%emt 0:06:40]} 30. Nxb7 {[%emt 0:06:00]} Re4 {[%emt 0:05:16]} 31. Re1 {[%emt 0:10:45]} Rxe1 {[%emt 0:00:29]} 32. Kxe1 {[%emt 0:00:01]} Kf7 {[%emt 0:00:44]} 33. Nc5 {[%emt 0:00:49]} Kg6 {[%emt 0:01:56]} 34. Kf2 {[%emt 0:02:46]} Kf5 {[%emt 0:00:42]} 35. e6 {[%emt 0:00:01]} d4 {[%emt 0:05:08]} 36. Nb3 {[%emt 0:02:30]} Ke5 {[%emt 0:01:45]} 37. e7 {[%emt 0:00:19]} Kd5 {[%emt 0:01:38]} 38. Ke1 {[%emt 0:01:28]} Kc4 {[%emt 0:01:16]} 39. Nd2+ {[%emt 0:00:29]} Kd3 {[%emt 0:01:06]} 40. Nf3 {[%emt 0:00:50]} a5 {[%emt 0:01:03]} 41. Ne5+ {[%emt 0:14:03]} Kc3 {[%emt 0:03:14]} 42. Nf7 {[%emt 0:03:05]} d3 {[%emt 0:00:41]} 43. Nd6 {[%emt 0:01:13]} d2+ {[%emt 0:01:17]} 44. Kf2 {[%emt 0:00:36]} Bd7 {[%emt 0:03:43]} 45. Ne4+ {[%emt 0:06:13]} Kc2 {[%emt 0:01:00]} 0-1